[Event "Early-Titled-Tuesday-Blitz-January-30-2024"]
[Site "Chess.com"]
[Date "2024.01.30"]
[Round "11"]
[White "AnaKuchava"]
[Black "lilylg"]
[Result "0-1"]
[WhiteElo "2193"]
[BlackElo "2165"]
[TimeControl "180+1"]
[EndTime "10:12:30 PST"]
[Termination "lilylg won on time"]

1. d4 {[%clk 0:02:33.5]} 1... d5 {[%clk 0:02:57.5]} 2. Nf3 {[%clk 0:02:29.1]}
2... e6 {[%clk 0:02:57.4]} 3. c4 {[%clk 0:02:28.4]} 3... c6 {[%clk 0:02:52.3]}
4. Qb3 {[%clk 0:02:27.3]} 4... Bd6 {[%clk 0:02:39.7]} 5. Nc3 {[%clk 0:02:24.5]}
5... f5 {[%clk 0:02:37.8]} 6. Bg5 {[%clk 0:02:16.4]} 6... Nf6 {[%clk 0:02:37.5]}
7. e3 {[%clk 0:02:11.6]} 7... O-O {[%clk 0:02:32.8]} 8. Bd3 {[%clk 0:02:04]}
8... Qe8 {[%clk 0:02:23.2]} 9. c5 {[%clk 0:01:49.2]} 9... Bc7 {[%clk 0:02:22.3]}
10. O-O {[%clk 0:01:47.3]} 10... Nbd7 {[%clk 0:02:19.7]} 11. Bf4 {[%clk
0:01:44.7]} 11... e5 {[%clk 0:02:11.3]} 12. Nxe5 {[%clk 0:01:04.2]} 12... Nxe5
{[%clk 0:01:47.4]} 13. dxe5 {[%clk 0:00:54.2]} 13... Bxe5 {[%clk 0:01:47.4]} 14.
Bxe5 {[%clk 0:00:54.1]} 14... Qxe5 {[%clk 0:01:48.3]} 15. Ne2 {[%clk 0:00:50.7]}
15... Rf7 {[%clk 0:01:37.6]} 16. Qc3 {[%clk 0:00:44]} 16... Qc7 {[%clk 0:01:34]}
17. Nd4 {[%clk 0:00:38.6]} 17... Bd7 {[%clk 0:01:24.9]} 18. b4 {[%clk
0:00:37.9]} 18... Ng4 {[%clk 0:01:17.7]} 19. g3 {[%clk 0:00:34.6]} 19... Re8
{[%clk 0:01:10]} 20. Qc2 {[%clk 0:00:31.8]} 20... Ne5 {[%clk 0:01:05.6]} 21.
Bxf5 {[%clk 0:00:25.2]} 21... Nf3+ {[%clk 0:00:28.8]} 22. Kg2 {[%clk 0:00:16.2]}
22... Nxd4 {[%clk 0:00:27.7]} 23. Bxh7+ {[%clk 0:00:15.5]} 23... Kh8 {[%clk
0:00:27.1]} 24. exd4 {[%clk 0:00:16.4]} 24... Rf6 {[%clk 0:00:20.2]} 25. Rae1
{[%clk 0:00:15.7]} 25... Ref8 {[%clk 0:00:20.1]} 26. Re2 {[%clk 0:00:14.3]}
26... Rh6 {[%clk 0:00:17.8]} 27. Bd3 {[%clk 0:00:08.5]} 27... Bh3+ {[%clk
0:00:17.8]} 28. Kg1 {[%clk 0:00:09.2]} 28... Bxf1 {[%clk 0:00:18.4]} 29. Kxf1
{[%clk 0:00:10.1]} 29... Rxh2 {[%clk 0:00:16.1]} 30. Kg1 {[%clk 0:00:07]} 30...
Rh6 {[%clk 0:00:15.4]} 31. Bf5 {[%clk 0:00:05.5]} 31... Qf7 {[%clk 0:00:14.9]}
32. Be6 {[%clk 0:00:02.4]} 32... Qh5 {[%clk 0:00:13.9]} 33. f4 {[%clk
0:00:01.6]} 33... Qh1+ {[%clk 0:00:13.6]} 34. Kf2 {[%clk 0:00:02.1]} 34... Qh2+
{[%clk 0:00:11.7]} 35. Ke3 {[%clk 0:00:02.8]} 35... Qxg3+ {[%clk 0:00:11.8]} 36.
Kd2 {[%clk 0:00:02.9]} 36... Qxf4+ {[%clk 0:00:12.1]} 37. Kd1 {[%clk 0:00:02.4]}
37... Qxd4+ {[%clk 0:00:10.6]} 38. Kc1 {[%clk 0:00:02.5]} 38... Rf1+ {[%clk
0:00:09.3]} 0-1

[Event "Early-Titled-Tuesday-Blitz-January-30-2024"]
[Site "Chess.com"]
[Date "2024.01.30"]
[Round "11"]
[White "vladgoncharov"]
[Black "DeArron_Fox"]
[Result "0-1"]
[WhiteElo "2628"]
[BlackElo "2491"]
[TimeControl "180+1"]
[EndTime "10:12:32 PST"]
[Termination "DeArron_Fox won by resignation"]

1. d4 {[%clk 0:03:00.9]} 1... d5 {[%clk 0:02:59.9]} 2. c4 {[%clk 0:02:59.4]}
2... e6 {[%clk 0:02:59.8]} 3. Nc3 {[%clk 0:02:58.6]} 3... Nf6 {[%clk 0:03:00.2]}
4. cxd5 {[%clk 0:02:58]} 4... exd5 {[%clk 0:03:00.2]} 5. Bg5 {[%clk 0:02:57.9]}
5... c6 {[%clk 0:03:00.8]} 6. e3 {[%clk 0:02:57.7]} 6... Be7 {[%clk 0:03:01.4]}
7. Bd3 {[%clk 0:02:57.6]} 7... Nbd7 {[%clk 0:03:02]} 8. Nge2 {[%clk 0:02:57.6]}
8... Nh5 {[%clk 0:03:02.6]} 9. Bxe7 {[%clk 0:02:55.4]} 9... Qxe7 {[%clk
0:03:03.5]} 10. O-O {[%clk 0:02:55.1]} 10... O-O {[%clk 0:03:02.2]} 11. Qb1
{[%clk 0:02:55.3]} 11... g6 {[%clk 0:03:02.1]} 12. b4 {[%clk 0:02:55]} 12... a6
{[%clk 0:03:02.5]} 13. a4 {[%clk 0:02:54.7]} 13... Ng7 {[%clk 0:02:57.6]} 14. b5
{[%clk 0:02:53.8]} 14... axb5 {[%clk 0:02:50.8]} 15. axb5 {[%clk 0:02:53.7]}
15... Rxa1 {[%clk 0:02:51.7]} 16. Qxa1 {[%clk 0:02:53.4]} 16... Nb6 {[%clk
0:02:42.8]} 17. bxc6 {[%clk 0:02:51.3]} 17... bxc6 {[%clk 0:02:40.7]} 18. Qa5
{[%clk 0:02:48.7]} 18... Qd8 {[%clk 0:02:10.3]} 19. Rb1 {[%clk 0:02:43.2]} 19...
Nc4 {[%clk 0:02:10.2]} 20. Qc5 {[%clk 0:02:17.4]} 20... Qd6 {[%clk 0:01:42.7]}
21. Bxc4 {[%clk 0:02:00.8]} 21... Qxc5 {[%clk 0:01:41.4]} 22. dxc5 {[%clk
0:02:01.7]} 22... dxc4 {[%clk 0:01:42.3]} 23. Nd4 {[%clk 0:01:58]} 23... Ne6
{[%clk 0:01:35.2]} 24. Nxc6 {[%clk 0:01:57.1]} 24... Nxc5 {[%clk 0:01:35.2]} 25.
Rb8 {[%clk 0:01:52.2]} 25... Be6 {[%clk 0:01:16.5]} 26. Rxf8+ {[%clk 0:01:45.9]}
26... Kxf8 {[%clk 0:01:17.4]} 27. f3 {[%clk 0:01:43.4]} 27... Ke8 {[%clk
0:01:12.1]} 28. Kf2 {[%clk 0:01:41.9]} 28... Kd7 {[%clk 0:01:11.6]} 29. Nd4
{[%clk 0:01:39.1]} 29... Kc7 {[%clk 0:00:57.4]} 30. e4 {[%clk 0:01:37]} 30...
Kb6 {[%clk 0:00:42.6]} 31. Ke3 {[%clk 0:01:35.2]} 31... Nb3 {[%clk 0:00:40.7]}
32. h4 {[%clk 0:01:25]} 32... Kc5 {[%clk 0:00:37.4]} 33. Nc2 {[%clk 0:01:25]}
33... Nc1 {[%clk 0:00:30.4]} 34. g4 {[%clk 0:01:20.4]} 34... Nd3 {[%clk
0:00:25.7]} 35. g5 {[%clk 0:01:15.7]} 35... Ne5 {[%clk 0:00:16.6]} 36. f4 {[%clk
0:00:55.8]} 36... Nc6 {[%clk 0:00:16.6]} 37. Ne2 {[%clk 0:00:42.3]} 37... Bg4
{[%clk 0:00:09.1]} 38. Ned4 {[%clk 0:00:41.7]} 38... Na5 {[%clk 0:00:05.2]} 39.
f5 {[%clk 0:00:40]} 39... Nb3 {[%clk 0:00:03.8]} 40. f6 {[%clk 0:00:38]} 40...
Bd1 {[%clk 0:00:02.9]} 41. e5 {[%clk 0:00:31.4]} 41... Bxc2 {[%clk 0:00:02.5]}
42. e6 {[%clk 0:00:30.3]} 42... Nxd4 {[%clk 0:00:02]} 43. e7 {[%clk 0:00:22.5]}
43... Ba4 {[%clk 0:00:01.8]} 0-1

[Event "Early-Titled-Tuesday-Blitz-January-30-2024"]
[Site "Chess.com"]
[Date "2024.01.30"]
[Round "11"]
[White "K_A_S_T_O_R"]
[Black "scarabee43"]
[Result "0-1"]
[WhiteElo "2917"]
[BlackElo "2866"]
[TimeControl "180+1"]
[EndTime "10:12:37 PST"]
[Termination "scarabee43 won by resignation"]

1. e4 {[%clk 0:03:00.9]} 1... c5 {[%clk 0:02:59.4]} 2. Nf3 {[%clk 0:03:00.1]}
2... e6 {[%clk 0:03:00.1]} 3. d4 {[%clk 0:03:00.5]} 3... cxd4 {[%clk 0:03:00.8]}
4. Nxd4 {[%clk 0:03:01.2]} 4... Nc6 {[%clk 0:03:01.5]} 5. Nb5 {[%clk 0:03:01.1]}
5... d6 {[%clk 0:02:57.8]} 6. c4 {[%clk 0:03:01.2]} 6... Nf6 {[%clk 0:02:57.7]}
7. N1c3 {[%clk 0:03:01]} 7... a6 {[%clk 0:02:57.5]} 8. Na3 {[%clk 0:03:01.5]}
8... Be7 {[%clk 0:02:57.6]} 9. Be2 {[%clk 0:03:01.5]} 9... O-O {[%clk
0:02:57.9]} 10. O-O {[%clk 0:03:01.9]} 10... b6 {[%clk 0:02:58.4]} 11. Be3
{[%clk 0:03:01.3]} 11... Bb7 {[%clk 0:02:58.2]} 12. Rc1 {[%clk 0:03:01.7]} 12...
Rc8 {[%clk 0:02:32.3]} 13. Qd2 {[%clk 0:02:57.3]} 13... Ne5 {[%clk 0:02:26.1]}
14. f3 {[%clk 0:02:56.9]} 14... d5 {[%clk 0:02:09]} 15. cxd5 {[%clk 0:02:51.9]}
15... exd5 {[%clk 0:02:09.6]} 16. exd5 {[%clk 0:02:45.7]} 16... Bb4 {[%clk
0:02:01.9]} 17. Bd4 {[%clk 0:02:37.7]} 17... Nxd5 {[%clk 0:01:45.3]} 18. Nab1
{[%clk 0:02:06.1]} 18... Ng6 {[%clk 0:01:39.2]} 19. Rfd1 {[%clk 0:02:05.2]}
19... Ndf4 {[%clk 0:01:38.7]} 20. Bf1 {[%clk 0:02:05.2]} 20... Qg5 {[%clk
0:01:34.3]} 21. Kh1 {[%clk 0:02:03.6]} 21... Rfd8 {[%clk 0:01:34.8]} 22. Qf2
{[%clk 0:02:03.7]} 22... b5 {[%clk 0:01:23.6]} 23. Nd2 {[%clk 0:01:58.2]} 23...
f5 {[%clk 0:00:57.3]} 24. Nb3 {[%clk 0:01:53.5]} 24... Ne6 {[%clk 0:00:48.9]}
25. Bb6 {[%clk 0:01:32.7]} 25... Rxd1 {[%clk 0:00:46.5]} 26. Rxd1 {[%clk
0:01:33.1]} 26... Bxc3 {[%clk 0:00:38.8]} 27. bxc3 {[%clk 0:01:33.6]} 27... Rxc3
{[%clk 0:00:39.1]} 28. Ba5 {[%clk 0:01:15]} 28... Rc8 {[%clk 0:00:32]} 29. Rd7
{[%clk 0:01:14.3]} 29... Bc6 {[%clk 0:00:31.1]} 30. Ra7 {[%clk 0:01:10.9]} 30...
Nef4 {[%clk 0:00:22.2]} 31. Qd4 {[%clk 0:00:59.1]} 31... Nh4 {[%clk 0:00:19.8]}
32. Bc3 {[%clk 0:00:51.2]} 32... Nh5 {[%clk 0:00:17.8]} 33. Bd2 {[%clk
0:00:39.2]} 33... Qd8 {[%clk 0:00:11.1]} 34. Qe5 {[%clk 0:00:33.8]} 34... Qd5
{[%clk 0:00:09.2]} 35. Qe7 {[%clk 0:00:24.2]} 35... Nxf3 {[%clk 0:00:08.4]} 36.
Bc3 {[%clk 0:00:24.2]} 36... Ng5 {[%clk 0:00:01.5]} 37. Nd4 {[%clk 0:00:20.7]}
37... Ne4 {[%clk 0:00:01.1]} 38. Ne6 {[%clk 0:00:16.6]} 38... Qd1 {[%clk
0:00:01.7]} 39. Qxg7+ {[%clk 0:00:15.6]} 39... Nxg7 {[%clk 0:00:01.5]} 40. Rxg7+
{[%clk 0:00:14.4]} 40... Kh8 {[%clk 0:00:02.2]} 41. Rd7+ {[%clk 0:00:10.4]}
41... Nxc3 {[%clk 0:00:02.2]} 42. Rxd1 {[%clk 0:00:10.1]} 42... Nxd1 {[%clk
0:00:02.9]} 43. Kg1 {[%clk 0:00:09.9]} 43... Nc3 {[%clk 0:00:03.6]} 0-1

[Event "Early-Titled-Tuesday-Blitz-January-30-2024"]
[Site "Chess.com"]
[Date "2024.01.30"]
[Round "11"]
[White "Andrey_Klymchuk"]
[Black "ilqar_74"]
[Result "1-0"]
[WhiteElo "2760"]
[BlackElo "2835"]
[TimeControl "180+1"]
[EndTime "10:12:37 PST"]
[Termination "Andrey_Klymchuk won by checkmate"]

1. e4 {[%clk 0:03:00.9]} 1... c5 {[%clk 0:03:00.2]} 2. Nf3 {[%clk 0:03:00.7]}
2... d6 {[%clk 0:03:00.8]} 3. d4 {[%clk 0:03:00.9]} 3... cxd4 {[%clk 0:03:01.7]}
4. Nxd4 {[%clk 0:03:01.4]} 4... Nf6 {[%clk 0:03:02.4]} 5. Nc3 {[%clk 0:03:01.7]}
5... e5 {[%clk 0:03:03.1]} 6. Bb5+ {[%clk 0:03:00.4]} 6... Bd7 {[%clk
0:03:03.1]} 7. Bxd7+ {[%clk 0:03:00.5]} 7... Qxd7 {[%clk 0:03:04]} 8. Nde2
{[%clk 0:03:00.7]} 8... Qc6 {[%clk 0:03:03.2]} 9. Qd3 {[%clk 0:02:52.7]} 9...
Nbd7 {[%clk 0:03:03.4]} 10. Be3 {[%clk 0:02:49.9]} 10... Be7 {[%clk 0:03:03.7]}
11. O-O-O {[%clk 0:02:49.3]} 11... a6 {[%clk 0:03:02.1]} 12. f3 {[%clk
0:02:47.7]} 12... Rc8 {[%clk 0:03:02]} 13. g4 {[%clk 0:02:46.2]} 13... Nc5
{[%clk 0:02:51.5]} 14. Qd2 {[%clk 0:02:38]} 14... Na4 {[%clk 0:02:46.6]} 15.
Nxa4 {[%clk 0:02:33.5]} 15... Qxa4 {[%clk 0:02:47.5]} 16. Kb1 {[%clk 0:02:27.5]}
16... O-O {[%clk 0:02:37.2]} 17. Nc3 {[%clk 0:02:24.9]} 17... Qc6 {[%clk
0:02:34.9]} 18. h4 {[%clk 0:02:22.7]} 18... Rfd8 {[%clk 0:02:32.4]} 19. h5
{[%clk 0:02:20.4]} 19... Nd7 {[%clk 0:02:26.5]} 20. Nd5 {[%clk 0:02:18.3]} 20...
Bf8 {[%clk 0:02:26.2]} 21. g5 {[%clk 0:02:09.4]} 21... Nc5 {[%clk 0:02:15]} 22.
Rh2 {[%clk 0:02:02.4]} 22... Ne6 {[%clk 0:02:13.1]} 23. g6 {[%clk 0:01:48.9]}
23... Nc7 {[%clk 0:02:10.6]} 24. Nb6 {[%clk 0:01:42.5]} 24... Rb8 {[%clk
0:01:52.4]} 25. gxf7+ {[%clk 0:01:36.9]} 25... Kxf7 {[%clk 0:01:50]} 26. Rg2
{[%clk 0:01:34]} 26... Re8 {[%clk 0:01:45]} 27. Rdg1 {[%clk 0:01:28]} 27... Re6
{[%clk 0:01:41.3]} 28. Qd3 {[%clk 0:01:20.9]} 28... Qb5 {[%clk 0:01:26.1]} 29.
c4 {[%clk 0:01:15.3]} 29... Qe8 {[%clk 0:01:24]} 30. Rg5 {[%clk 0:01:10.6]}
30... Kg8 {[%clk 0:01:21.1]} 31. Qf1 {[%clk 0:01:10.3]} 31... Qf7 {[%clk
0:01:19.1]} 32. Qg2 {[%clk 0:01:01.4]} 32... Rf6 {[%clk 0:01:14.9]} 33. Rg3
{[%clk 0:00:54.8]} 33... a5 {[%clk 0:00:53]} 34. Bg5 {[%clk 0:00:51.6]} 34...
Re6 {[%clk 0:00:53.5]} 35. Qh3 {[%clk 0:00:47.7]} 35... d5 {[%clk 0:00:50.5]}
36. Nxd5 {[%clk 0:00:45.9]} 36... Nxd5 {[%clk 0:00:50.8]} 37. cxd5 {[%clk
0:00:44.8]} 37... Rb6 {[%clk 0:00:51.4]} 38. Be3 {[%clk 0:00:41.7]} 38... Rb5
{[%clk 0:00:49.2]} 39. Rc1 {[%clk 0:00:40.7]} 39... Qe7 {[%clk 0:00:40.5]} 40.
Rc2 {[%clk 0:00:35]} 40... a4 {[%clk 0:00:40.5]} 41. Rg1 {[%clk 0:00:33.3]}
41... a3 {[%clk 0:00:40.4]} 42. b3 {[%clk 0:00:33.1]} 42... Qf7 {[%clk
0:00:36.4]} 43. Rgc1 {[%clk 0:00:30.7]} 43... Ra5 {[%clk 0:00:28.6]} 44. Rc7
{[%clk 0:00:29.8]} 44... Qf6 {[%clk 0:00:28.7]} 45. Qg4 {[%clk 0:00:24]} 45...
Raa8 {[%clk 0:00:25.4]} 46. Bg5 {[%clk 0:00:23.5]} 46... Qb6 {[%clk 0:00:23.5]}
47. h6 {[%clk 0:00:23.1]} 47... g6 {[%clk 0:00:22]} 48. Be7 {[%clk 0:00:21.6]}
48... Re8 {[%clk 0:00:13.7]} 49. d6 {[%clk 0:00:20.6]} 49... Bxe7 {[%clk
0:00:10.6]} 50. Qe6+ {[%clk 0:00:20.2]} 50... Kh8 {[%clk 0:00:10.6]} 51. Rxe7
{[%clk 0:00:20.8]} 51... Rxe7 {[%clk 0:00:09.2]} 52. Qxe7 {[%clk 0:00:20.8]}
52... Qf2 {[%clk 0:00:08.6]} 53. Qg7# {[%clk 0:00:20.7]} 1-0

[Event "Early-Titled-Tuesday-Blitz-January-30-2024"]
[Site "Chess.com"]
[Date "2024.01.30"]
[Round "11"]
[White "RobertoJBM"]
[Black "SaiAgni_98"]
[Result "1-0"]
[WhiteElo "2807"]
[BlackElo "2571"]
[TimeControl "180+1"]
[EndTime "10:12:40 PST"]
[Termination "RobertoJBM won by resignation"]

1. d4 {[%clk 0:03:00.9]} 1... d5 {[%clk 0:02:59.5]} 2. c4 {[%clk 0:03:00]} 2...
e6 {[%clk 0:02:59.8]} 3. Nc3 {[%clk 0:02:59.6]} 3... h6 {[%clk 0:03:00.2]} 4.
Nf3 {[%clk 0:02:57.9]} 4... Nf6 {[%clk 0:03:00.5]} 5. Bf4 {[%clk 0:02:56.4]}
5... Bd6 {[%clk 0:02:58.9]} 6. Bg3 {[%clk 0:02:53.9]} 6... O-O {[%clk
0:02:51.2]} 7. e3 {[%clk 0:02:53.1]} 7... a6 {[%clk 0:02:47.2]} 8. c5 {[%clk
0:02:47]} 8... Bxg3 {[%clk 0:02:42.1]} 9. hxg3 {[%clk 0:02:47.9]} 9... b6 {[%clk
0:02:42.6]} 10. cxb6 {[%clk 0:02:45.2]} 10... cxb6 {[%clk 0:02:42.9]} 11. Rc1
{[%clk 0:02:43.3]} 11... Bb7 {[%clk 0:02:42.5]} 12. Bd3 {[%clk 0:02:43.2]} 12...
Nc6 {[%clk 0:02:41.2]} 13. O-O {[%clk 0:02:42.5]} 13... b5 {[%clk 0:02:40.6]}
14. a3 {[%clk 0:02:35.8]} 14... Na5 {[%clk 0:02:40.2]} 15. Qe2 {[%clk
0:02:34.1]} 15... Rc8 {[%clk 0:02:39.8]} 16. Na2 {[%clk 0:02:32.4]} 16... Nc4
{[%clk 0:02:38.7]} 17. Rc2 {[%clk 0:02:28.9]} 17... Qd6 {[%clk 0:02:27.2]} 18.
Rfc1 {[%clk 0:02:28.5]} 18... e5 {[%clk 0:02:26]} 19. Bxc4 {[%clk 0:02:19.7]}
19... e4 {[%clk 0:02:14.9]} 20. Bb3 {[%clk 0:02:16]} 20... exf3 {[%clk
0:02:12.8]} 21. Qxf3 {[%clk 0:02:08.2]} 21... h5 {[%clk 0:01:57.1]} 22. Qf4
{[%clk 0:02:06.1]} 22... Qe6 {[%clk 0:01:48.3]} 23. Nb4 {[%clk 0:02:00]} 23...
Ne4 {[%clk 0:01:34.8]} 24. Nd3 {[%clk 0:01:30.5]} 24... Rxc2 {[%clk 0:01:27.8]}
25. Rxc2 {[%clk 0:01:29.5]} 25... Ba8 {[%clk 0:01:04]} 26. Nc5 {[%clk
0:01:20.1]} 26... Nxc5 {[%clk 0:00:49.5]} 27. Rxc5 {[%clk 0:01:21]} 27... Rc8
{[%clk 0:00:45.9]} 28. Bd1 {[%clk 0:01:07.7]} 28... g6 {[%clk 0:00:44.2]} 29. b4
{[%clk 0:01:05.6]} 29... Re8 {[%clk 0:00:39.7]} 30. Bf3 {[%clk 0:01:04.8]} 30...
Rd8 {[%clk 0:00:39.8]} 31. Bxh5 {[%clk 0:00:52.1]} 31... Kg7 {[%clk 0:00:17.7]}
32. Bg4 {[%clk 0:00:47.8]} 32... Qe7 {[%clk 0:00:15]} 33. Rc7 {[%clk 0:00:39.5]}
33... Qf6 {[%clk 0:00:13.8]} 34. Qxf6+ {[%clk 0:00:38.9]} 34... Kxf6 {[%clk
0:00:14.7]} 35. Be2 {[%clk 0:00:35.2]} 35... Rd6 {[%clk 0:00:14.8]} 36. f3
{[%clk 0:00:33]} 36... Ke6 {[%clk 0:00:10.4]} 37. Kf2 {[%clk 0:00:32.7]} 37...
Rd8 {[%clk 0:00:08.7]} 38. g4 {[%clk 0:00:32.7]} 38... g5 {[%clk 0:00:08.2]} 39.
f4 {[%clk 0:00:28.3]} 39... gxf4 {[%clk 0:00:04.6]} 40. exf4 {[%clk 0:00:29.2]}
40... f6 {[%clk 0:00:03.9]} 41. Bf3 {[%clk 0:00:27]} 41... Rd7 {[%clk
0:00:03.4]} 42. Rxd7 {[%clk 0:00:26.5]} 42... Kxd7 {[%clk 0:00:04.3]} 43. Kg3
{[%clk 0:00:25.5]} 43... Ke6 {[%clk 0:00:04.4]} 44. Kh4 {[%clk 0:00:26]} 44...
Bc6 {[%clk 0:00:03.6]} 45. Kh5 {[%clk 0:00:26.3]} 45... Be8+ {[%clk 0:00:04.3]}
46. Kh6 {[%clk 0:00:26.7]} 46... Bc6 {[%clk 0:00:04.3]} 47. Be2 {[%clk
0:00:26.4]} 47... Kf7 {[%clk 0:00:04.6]} 48. Bd3 {[%clk 0:00:26.4]} 48... Bd7
{[%clk 0:00:05.1]} 49. Bf5 {[%clk 0:00:25.8]} 49... Bc6 {[%clk 0:00:05.2]} 50.
g5 {[%clk 0:00:25.4]} 50... fxg5 {[%clk 0:00:05.8]} 51. fxg5 {[%clk 0:00:26.3]}
51... Be8 {[%clk 0:00:04.6]} 52. Bg6+ {[%clk 0:00:25.9]} 1-0

[Event "Early-Titled-Tuesday-Blitz-January-30-2024"]
[Site "Chess.com"]
[Date "2024.01.30"]
[Round "11"]
[White "Hikaru"]
[Black "artooon"]
[Result "1-0"]
[WhiteElo "3283"]
[BlackElo "3027"]
[TimeControl "180+1"]
[EndTime "10:12:41 PST"]
[Termination "Hikaru won on time"]

1. e4 {[%clk 0:03:00.9]} 1... e5 {[%clk 0:02:58.8]} 2. Bc4 {[%clk 0:03:00.6]}
2... Nf6 {[%clk 0:02:58.8]} 3. d3 {[%clk 0:03:01.1]} 3... Nc6 {[%clk 0:02:59.4]}
4. Nc3 {[%clk 0:02:57.2]} 4... Na5 {[%clk 0:02:59.5]} 5. Qf3 {[%clk 0:02:57.2]}
5... Nxc4 {[%clk 0:02:57.2]} 6. dxc4 {[%clk 0:02:58.1]} 6... d6 {[%clk
0:02:56.5]} 7. Nge2 {[%clk 0:02:58.2]} 7... Be7 {[%clk 0:02:56.1]} 8. O-O {[%clk
0:02:57.8]} 8... O-O {[%clk 0:02:56.4]} 9. b3 {[%clk 0:02:53.5]} 9... Bg4 {[%clk
0:02:54.2]} 10. Qe3 {[%clk 0:02:51.6]} 10... Nd7 {[%clk 0:02:51.3]} 11. Ng3
{[%clk 0:02:51.4]} 11... Nc5 {[%clk 0:02:42.1]} 12. h3 {[%clk 0:02:49.5]} 12...
Be6 {[%clk 0:02:39.5]} 13. Nf5 {[%clk 0:02:29.6]} 13... Bf6 {[%clk 0:02:27.3]}
14. Qf3 {[%clk 0:02:27.8]} 14... g6 {[%clk 0:02:23.5]} 15. Ne3 {[%clk
0:01:49.7]} 15... Bg7 {[%clk 0:02:21.1]} 16. Ba3 {[%clk 0:01:41.4]} 16... b6
{[%clk 0:02:17.4]} 17. Qe2 {[%clk 0:01:33.9]} 17... f5 {[%clk 0:02:12.8]} 18. f3
{[%clk 0:01:33]} 18... Qh4 {[%clk 0:02:08.6]} 19. Ned5 {[%clk 0:01:28]} 19...
Rf7 {[%clk 0:02:06.4]} 20. Rad1 {[%clk 0:01:15.1]} 20... Raf8 {[%clk 0:02:05.3]}
21. exf5 {[%clk 0:01:14.3]} 21... gxf5 {[%clk 0:02:00.5]} 22. f4 {[%clk
0:01:14.5]} 22... c6 {[%clk 0:01:45.8]} 23. Nb4 {[%clk 0:01:14.6]} 23... exf4
{[%clk 0:01:39.4]} 24. Nxc6 {[%clk 0:01:06.8]} 24... Bxc3 {[%clk 0:01:28.3]} 25.
Bxc5 {[%clk 0:01:06.4]} 25... Bd7 {[%clk 0:01:02.5]} 26. Bf2 {[%clk 0:00:39.1]}
26... Qg5 {[%clk 0:01:02.3]} 27. Rxd6 {[%clk 0:00:36]} 27... Rg7 {[%clk
0:00:52.5]} 28. Qf3 {[%clk 0:00:35.7]} 28... Be8 {[%clk 0:00:46.1]} 29. Bd4
{[%clk 0:00:19.1]} 29... Bh5 {[%clk 0:00:40.3]} 30. Qd5+ {[%clk 0:00:16.6]}
30... Bf7 {[%clk 0:00:40.9]} 31. Qf3 {[%clk 0:00:16.4]} 31... Bh5 {[%clk
0:00:41.3]} 32. Qf2 {[%clk 0:00:14]} 32... Bxd4 {[%clk 0:00:33.5]} 33. Nxd4
{[%clk 0:00:14.9]} 33... Re8 {[%clk 0:00:10.8]} 34. Ne6 {[%clk 0:00:13.6]} 34...
Rxe6 {[%clk 0:00:11.5]} 35. Rxe6 {[%clk 0:00:14.5]} 35... f3 {[%clk 0:00:12.2]}
36. g3 {[%clk 0:00:06.2]} 36... f4 {[%clk 0:00:12.7]} 37. Rd1 {[%clk 0:00:01.6]}
37... fxg3 {[%clk 0:00:10.2]} 38. Qd4 {[%clk 0:00:02.1]} 38... f2+ {[%clk
0:00:09.9]} 39. Kg2 {[%clk 0:00:03]} 39... Bxd1 {[%clk 0:00:06.3]} 40. Re8+
{[%clk 0:00:02.4]} 40... Kf7 {[%clk 0:00:07]} 41. Qd7+ {[%clk 0:00:03.3]} 41...
Kg6 {[%clk 0:00:07.5]} 42. Re6+ {[%clk 0:00:03.8]} 1-0

[Event "Early-Titled-Tuesday-Blitz-January-30-2024"]
[Site "Chess.com"]
[Date "2024.01.30"]
[Round "11"]
[White "jefferyx"]
[Black "HansOnTwitch"]
[Result "1/2-1/2"]
[WhiteElo "3019"]
[BlackElo "3210"]
[TimeControl "180+1"]
[EndTime "10:12:42 PST"]
[Termination "Game drawn by repetition"]

1. e4 {[%clk 0:03:00.9]} 1... c6 {[%clk 0:02:50.9]} 2. Nf3 {[%clk 0:03:00.5]}
2... d5 {[%clk 0:02:50.6]} 3. d3 {[%clk 0:03:01]} 3... g6 {[%clk 0:02:29.1]} 4.
e5 {[%clk 0:03:01]} 4... c5 {[%clk 0:02:26.2]} 5. c3 {[%clk 0:03:01.1]} 5... Nc6
{[%clk 0:02:23.7]} 6. d4 {[%clk 0:03:01.5]} 6... Bg4 {[%clk 0:02:21.3]} 7. Nbd2
{[%clk 0:02:59.3]} 7... cxd4 {[%clk 0:02:11.4]} 8. cxd4 {[%clk 0:03:00.2]} 8...
Bh6 {[%clk 0:02:11.6]} 9. Bb5 {[%clk 0:02:50.4]} 9... Qb6 {[%clk 0:02:07.5]} 10.
Bxc6+ {[%clk 0:02:49.1]} 10... Qxc6 {[%clk 0:02:08.4]} 11. h3 {[%clk 0:02:48.4]}
11... Bd7 {[%clk 0:01:59.3]} 12. Nb3 {[%clk 0:02:24.1]} 12... Bg7 {[%clk
0:01:49.8]} 13. Nc5 {[%clk 0:02:17.5]} 13... Bc8 {[%clk 0:01:46.1]} 14. O-O
{[%clk 0:02:17.2]} 14... b6 {[%clk 0:01:46]} 15. Nd3 {[%clk 0:02:17.7]} 15... a5
{[%clk 0:01:43.5]} 16. Re1 {[%clk 0:02:17.8]} 16... Ba6 {[%clk 0:01:38.8]} 17.
Bg5 {[%clk 0:01:54.2]} 17... h6 {[%clk 0:01:38.4]} 18. Be3 {[%clk 0:01:50.4]}
18... e6 {[%clk 0:01:35.9]} 19. Rc1 {[%clk 0:01:37.1]} 19... Qb5 {[%clk
0:01:34.9]} 20. Rc3 {[%clk 0:01:37.2]} 20... Ne7 {[%clk 0:01:33.9]} 21. Qd2
{[%clk 0:01:37.4]} 21... Nf5 {[%clk 0:01:29.6]} 22. Rb3 {[%clk 0:01:23.2]} 22...
Qc6 {[%clk 0:01:19.2]} 23. Rc1 {[%clk 0:01:22.9]} 23... Bc4 {[%clk 0:00:59.1]}
24. Rbc3 {[%clk 0:01:23.4]} 24... Qb5 {[%clk 0:00:53.3]} 25. b3 {[%clk
0:01:23.2]} 25... Bxd3 {[%clk 0:00:53.8]} 26. Rxd3 {[%clk 0:01:21.8]} 26... Kd7
{[%clk 0:00:54]} 27. Rdc3 {[%clk 0:01:19.5]} 27... Rhc8 {[%clk 0:00:53.1]} 28.
g4 {[%clk 0:01:15.6]} 28... Nxe3 {[%clk 0:00:51.6]} 29. Qxe3 {[%clk 0:01:16.5]}
29... Rxc3 {[%clk 0:00:35.6]} 30. Qxc3 {[%clk 0:01:17.4]} 30... Bf8 {[%clk
0:00:23.1]} 31. Qc7+ {[%clk 0:01:06.6]} 31... Ke8 {[%clk 0:00:23.3]} 32. Qb7
{[%clk 0:01:07.5]} 32... Rd8 {[%clk 0:00:16.9]} 33. Rc7 {[%clk 0:01:07.9]} 33...
Rd7 {[%clk 0:00:08.6]} 34. Rc8+ {[%clk 0:01:06.4]} 34... Rd8 {[%clk 0:00:04.1]}
35. Rxd8+ {[%clk 0:01:06.6]} 35... Kxd8 {[%clk 0:00:05]} 36. Qxf7 {[%clk
0:01:06.9]} 36... Qe8 {[%clk 0:00:05.8]} 37. Qb7 {[%clk 0:00:59.7]} 37... Qb5
{[%clk 0:00:04.6]} 38. Nh4 {[%clk 0:01:00.3]} 38... g5 {[%clk 0:00:02.6]} 39.
Ng6 {[%clk 0:01:00.7]} 39... Bb4 {[%clk 0:00:03]} 40. Nh8 {[%clk 0:00:56.4]}
40... Qe2 {[%clk 0:00:02.4]} 41. Qxb6+ {[%clk 0:00:51.6]} 41... Kd7 {[%clk
0:00:02.4]} 42. Qb7+ {[%clk 0:00:52]} 42... Kd8 {[%clk 0:00:02.5]} 43. Qf7
{[%clk 0:00:11.1]} 43... Qe1+ {[%clk 0:00:02.4]} 44. Kg2 {[%clk 0:00:11.8]}
44... Qe4+ {[%clk 0:00:03.2]} 45. Qf3 {[%clk 0:00:12]} 45... Qxd4 {[%clk
0:00:03.2]} 46. Qf6+ {[%clk 0:00:12.6]} 46... Kd7 {[%clk 0:00:03.2]} 47. Qf7+
{[%clk 0:00:12.7]} 47... Kd8 {[%clk 0:00:03.9]} 48. Qxe6 {[%clk 0:00:09.1]}
48... Qe4+ {[%clk 0:00:04.3]} 49. Kg1 {[%clk 0:00:08.5]} 49... Qe1+ {[%clk
0:00:04.2]} 50. Kg2 {[%clk 0:00:09.1]} 50... Qe4+ {[%clk 0:00:05.1]} 51. Kg1
{[%clk 0:00:08.6]} 51... Qe1+ {[%clk 0:00:05.1]} 52. Kg2 {[%clk 0:00:09.1]}
52... Qe4+ {[%clk 0:00:05.8]} 1/2-1/2